bitfinex/quotes_BTCUSD_20220307
["timestamp","ask_amount","ask_price","bid_price","bid_amount"]
[1646677053476,0.02122,38134.0,38126.0,0.002]
[1646677053675,0.453991,38133.0,38126.0,0.002]
[1646677054380,0.405691,38130.0,38126.0,0.002]
[1646677054577,0.405691,38128.0,38126.0,0.002]
[1646677054775,0.0483,38127.0,38122.0,0.05]
[1646677055026,0.400691,38126.0,38121.0,0.77]
[1646677055229,0.448991,38126.0,38121.0,0.77]
[1646677056029,0.8053451,38126.0,38125.0,1.78595046]
[1646677056231,1.03929386,38126.0,38125.0,0.79803707]
[1646677056427,1.03929386,38126.0,38107.0,0.131239]
[1646677056428,0.05893557,38121.0,38105.0,0.7469]
[1646677056628,1.205894,38118.0,38105.0,0.7469]
[1646677056828,1.8349195,38118.0,38105.0,0.7469]
[1646677057031,2.10309932,38118.0,38105.0,0.7469]
[1646677057232,0.02622,38115.0,38097.0,0.131273]
[1646677057434,0.02622,38108.0,38097.0,0.131273]
[1646677057628,0.480214,38107.0,38096.0,0.7469]
[1646677057828,0.480214,38107.0,38097.0,0.16494143]
[1646677057829,0.02622,38106.0,38097.0,0.16494143]
[1646677058029,0.453994,38105.0,38097.0,0.16494143]
[1646677058228,0.19289798,38101.0,38097.0,0.16494143]
[1646677058429,0.64689198,38101.0,38097.0,0.16494143]
[1646677058671,0.64689198,38101.0,38096.0,0.7469]
[1646677058872,0.64689198,38101.0,38099.0,0.00013454]
[1646677059873,0.64689198,38101.0,38096.0,0.97113248]
[1646677060078,0.64689198,38101.0,38099.0,0.00013454]
[1646677060880,1.01284764,38101.0,38099.0,0.00013454]
[1646677061076,0.64689198,38101.0,38096.0,0.7469]
[1646677061277,0.66000198,38101.0,38099.0,0.00013454]
[1646677061476,0.66000198,38101.0,38100.0,0.0217411]
[1646677061477,1.9601064,38101.0,38100.0,0.0217411]
[1646677061682,0.8002,38099.0,38093.0,0.001]
[1646677061878,0.8002,38099.0,38085.0,0.2008]
[1646677061879,0.02622,38091.0,38085.0,0.2008]
[1646677062179,0.453994,38090.0,38085.0,0.2008]
[1646677062434,0.453994,38090.0,38081.0,0.64495546]
[1646677062732,0.0483,38090.0,38084.0,0.01605124]
[1646677062928,0.0483,38090.0,38081.0,0.64495546]
[1646677063325,0.405694,38089.0,38085.0,0.06567]
[1646677063526,0.17005791,38087.0,38085.0,0.06567]
[1646677063726,0.453994,38086.0,38083.0,0.131335]
[1646677063928,0.0483,38086.0,38083.0,0.131335]
[1646677064325,0.405694,38085.0,38083.0,0.131335]
[1646677064527,0.0483,38084.0,38083.0,0.131335]
[1646677064928,0.448994,38084.0,38083.0,0.13145412]
[1646677065929,0.448994,38084.0,38083.0,0.131335]
[1646677066964,0.0433,38084.0,38083.0,0.131335]
[1646677067764,0.448994,38084.0,38083.0,0.131335]
[1646677068869,0.448994,38084.0,38082.0,0.00011308]
[1646677069066,0.448994,38084.0,38082.0,0.06578208]
[1646677069465,0.448994,38084.0,38082.0,0.065669]
[1646677069667,0.0433,38084.0,38082.0,0.065669]
[1646677069939,0.766774,38083.0,38081.0,0.64506855]
[1646677070225,1.715274,38082.0,38081.0,0.64506855]
[1646677070726,0.928184,38082.0,38081.0,0.64495546]
[1646677070930,0.62126097,38082.0,38081.0,0.64495546]
[1646677071123,0.60815097,38082.0,38081.0,0.64495546]
[1646677071325,0.453994,38082.0,38081.0,0.64495546]
[1646677071926,0.0483,38082.0,38081.0,1.20066421]
[1646677072125,0.453994,38082.0,38081.0,1.12976118]
[1646677072323,0.453994,38082.0,38081.0,0.91506857]
[1646677072722,0.453994,38082.0,38081.0,0.64495546]
[1646677073525,0.405694,38093.0,38081.0,0.6610067]
[1646677073776,0.405694,38093.0,38085.0,0.16389378]
[1646677073976,0.405694,38093.0,38084.0,0.065656]
[1646677074375,0.02622,38092.0,38084.0,0.065656]
[1646677074576,0.453994,38091.0,38087.0,0.0001181]
[1646677074776,0.21942244,38090.0,38087.0,0.0001181]
[1646677074977,1.615274,38089.0,38087.0,0.0001181]
[1646677075179,0.766774,38088.0,38087.0,0.0001181]
[1646677075375,1.715274,38088.0,38087.0,0.0001181]
[1646677075576,0.82642,38086.0,38081.0,0.64495546]
[1646677075779,0.980767,38085.0,38081.0,0.64495546]
[1646677075975,0.39719632,38084.0,38081.0,0.64495546]
[1646677076175,0.405694,38083.0,38081.0,0.64495546]
[1646677076375,0.0483,38082.0,38081.0,0.64495546]
[1646677076575,0.453994,38082.0,38081.0,0.64495546]
[1646677076776,0.553994,38082.0,38081.0,0.64495546]
[1646677078418,0.619682,38082.0,38081.0,0.64495546]
[1646677078919,0.519682,38082.0,38081.0,0.64495546]
[1646677079120,0.453994,38082.0,38081.0,0.64495546]
[1646677079919,0.405694,38082.0,38081.0,0.64495546]
[1646677080130,0.01311,38090.0,38081.0,0.64495546]
[1646677080131,0.405694,38089.0,38083.0,0.065662]
[1646677080425,0.0999,38101.0,38081.0,0.79234666]
[1646677080426,0.405694,38094.0,38089.0,0.19253649]
[1646677080618,0.405694,38093.0,38090.0,0.01605124]
[1646677080821,0.405694,38097.0,38090.0,0.01605124]
[1646677081027,1.2819,38109.0,38095.0,0.01605124]
[1646677081295,1.2819,38109.0,38099.0,0.01605124]
[1646677081296,0.4817,38109.0,38099.0,0.01605124]
[1646677081490,0.1,38111.0,38100.0,0.131278]
[1646677081491,0.065634,38111.0,38100.0,0.131278]
[1646677081708,0.02581469,38119.0,38100.0,0.131278]
[1646677081709,0.01312,38110.0,38100.0,0.131278]
[1646677081894,0.15559617,38115.0,38107.0,0.01605124]
[1646677082290,0.00020047,38122.0,38112.0,0.05907199]
[1646677082490,0.01311,38120.0,38111.0,0.01605124]
[1646677082694,0.431914,38119.0,38112.0,0.181227]
[1646677082889,0.431914,38119.0,38112.0,0.131227]
[1646677083093,0.431914,38119.0,38112.0,0.181227]
[1646677083288,0.405694,38117.0,38113.0,0.065614]
[1646677084292,0.405694,38117.0,38114.0,0.18530777]
[1646677084497,0.01311,38120.0,38116.0,0.28326875]
[1646677084694,0.05893557,38121.0,38119.0,0.01605124]
[1646677084936,0.00080192,38131.0,38121.0,1.55]
[1646677085131,0.4819,38135.0,38130.0,0.08027961]
[1646677085331,0.4819,38135.0,38122.0,0.35950742]
[1646677085332,0.0076255,38128.0,38124.0,0.32894647]
[1646677085530,0.00080141,38131.0,38128.0,1.57622]
[1646677085734,0.15500614,38138.0,38129.0,0.14963489]
[1646677085929,0.83079442,38137.0,38129.0,0.115573]
[1646677086133,0.471287,38137.0,38129.0,0.115573]
[1646677086334,0.11311,38145.0,38140.0,0.15988866]
[1646677086532,0.4459,38146.0,38140.0,0.15988866]
[1646677086732,0.405695,38145.0,38141.0,0.065574]
[1646677087132,0.471275,38145.0,38141.0,0.065574]
[1646677087328,0.471275,38145.0,38139.0,0.181147]
[1646677087329,1.63098242,38145.0,38139.0,0.181147]
[1646677087528,0.03932,38144.0,38139.0,0.181147]
[1646677087728,0.405695,38143.0,38139.0,0.181147]
[1646677087931,0.405695,38141.0,38139.0,0.181147]
[1646677089178,0.35250456,38140.0,38139.0,0.181147]
[1646677089379,0.75819956,38140.0,38139.0,0.05]
[1646677089579,0.405695,38140.0,38139.0,0.05]
[1646677089779,0.09201471,38142.0,38138.0,0.065587]
[1646677089780,0.00020871,38142.0,38138.0,0.065587]
[1646677089981,0.1,38150.0,38138.0,0.065587]
[1646677090181,0.1,38150.0,38141.0,0.17469444]
[1646677090182,0.00083473,38147.0,38141.0,0.17469444]
[1646677090379,0.00083473,38147.0,38141.0,0.181144]
[1646677090580,0.00083473,38147.0,38142.0,0.35250456]
[1646677090779,0.00083473,38147.0,38146.0,0.06710972]
[1646677090982,0.00083473,38147.0,38141.0,0.181144]
[1646677091179,0.431915,38153.0,38145.0,0.115562]
[1646677091381,0.00016713,38146.0,38145.0,0.19668579]
[1646677091778,0.00016713,38146.0,38145.0,0.24668579]
[1646677092440,0.405695,38146.0,38142.0,0.15951077]
[1646677092642,0.00016713,38147.0,38139.0,0.196701]
[1646677093240,0.00016713,38147.0,38145.0,0.065562]
[1646677093440,0.06557,38151.0,38145.0,0.065562]
[1646677093441,0.405695,38146.0,38145.0,0.065562]
[1646677094543,0.02622,38145.0,38131.0,0.05047492]
[1646677094742,0.405695,38142.0,38138.0,0.065588]
[1646677095341,0.01672711,38135.0,38133.0,0.0533527]
[1646677095543,0.01672711,38135.0,38133.0,0.38231528]
[1646677095942,0.01672711,38135.0,38133.0,0.44789428]
[1646677096178,0.01672711,38135.0,38133.0,0.54789428]
[1646677096973,0.01672711,38135.0,38133.0,0.69434158]
[1646677097174,0.01672711,38135.0,38133.0,0.59434158]
[1646677097374,0.00020893,38136.0,38133.0,0.65992272]
[1646677097574,0.00020893,38136.0,38133.0,0.46012272]
[1646677098175,0.00020893,38136.0,38133.0,0.2623233]
[1646677098374,0.17751472,38138.0,38133.0,0.3123233]
[1646677098575,0.00020473,38136.0,38134.0,0.05]
[1646677099475,0.17751472,38138.0,38134.0,0.05]
[1646677099916,0.00020473,38137.0,38136.0,0.16097283]
[1646677100316,0.00020473,38137.0,38136.0,0.05]
[1646677100716,0.82642,38144.0,38134.0,0.05168]
[1646677100915,0.00020473,38138.0,38134.0,0.05168]
[1646677101215,0.00020473,38138.0,38134.0,0.05]
[1646677101420,0.00020473,38138.0,38130.0,0.62230693]
[1646677101421,0.405695,38137.0,38130.0,0.62230693]
[1646677101615,0.34635434,38136.0,38130.0,0.62230693]
[1646677101817,0.37257434,38137.0,38130.0,0.62230693]
[1646677102018,0.37257434,38137.0,38124.0,0.06572846]
[1646677102019,1.280415,38136.0,38124.0,0.06572846]
[1646677102217,1.280415,38136.0,38124.0,0.00012746]
[1646677102221,0.82642,38133.0,38124.0,0.00012746]
[1646677102417,0.15,38134.0,38124.0,0.00012746]
[1646677102418,0.8002,38127.0,38124.0,0.00012746]
[1646677102616,0.17622,38128.0,38124.0,0.00012746]
[1646677102617,0.8002,38125.0,38124.0,0.00012746]
[1646677102816,0.8002,38121.0,38113.0,0.05]
[1646677103016,0.82642,38117.0,38107.0,0.001]
[1646677103217,0.39465434,38120.0,38107.0,0.001]
[1646677103218,0.05774425,38112.0,38107.0,0.001]
[1646677103416,0.453995,38111.0,38107.0,0.001]
[1646677103873,0.453995,38111.0,38107.0,0.27244413]
[1646677104268,0.453995,38111.0,38107.0,0.40369213]
[1646677104470,0.453995,38111.0,38107.0,0.19787791]
[1646677104870,0.453995,38111.0,38107.0,0.132248]
[1646677105270,0.405695,38109.0,38107.0,0.001]
[1646677105471,0.0483,38108.0,38107.0,0.001]
[1646677105669,0.453995,38108.0,38107.0,0.00113981]
[1646677106174,0.453995,38108.0,38105.0,0.002]
[1646677106175,1.205895,38106.0,38105.0,0.001]
[1646677106371,1.70054934,38106.0,38105.0,0.001]
[1646677106674,1.71365934,38106.0,38105.0,0.001]
[1646677106869,1.267305,38106.0,38105.0,0.001]
[1646677107071,0.453995,38106.0,38105.0,0.001]
[1646677107917,1.354195,38106.0,38105.0,0.001]
[1646677108120,1.367305,38106.0,38105.0,0.001]
[1646677108517,1.63053284,38106.0,38105.0,0.001]
[1646677108721,1.78053284,38106.0,38105.0,0.001]
[1646677108923,1.78053284,38106.0,38100.0,0.038]
[1646677108924,2.08256753,38106.0,38100.0,0.038]
[1646677109123,0.8372,38100.0,38095.0,0.002]
[1646677109325,1.77687934,38100.0,38095.0,0.002]
[1646677109523,0.8002,38096.0,38095.0,0.002]
[1646677109723,0.59291969,38096.0,38095.0,0.002]
[1646677109922,0.49291969,38096.0,38095.0,0.002]
[1646677110125,0.47980969,38096.0,38095.0,0.002]
[1646677110625,0.453995,38096.0,38095.0,0.002]
[1646677110824,0.0483,38096.0,38095.0,0.002]
[1646677111475,0.0483,38096.0,38095.0,0.17803564]
[1646677111675,0.0483,38096.0,38095.0,0.43198022]
[1646677111878,0.0483,38096.0,38095.0,0.52177231]
[1646677112075,0.0483,38096.0,38095.0,0.09179209]
[1646677112276,0.0483,38096.0,38095.0,0.052]
[1646677112475,0.79897002,38096.0,38095.0,0.002]
[1646677112876,1.61742284,38096.0,38095.0,0.002]
[1646677113078,1.70536809,38096.0,38095.0,0.002]
[1646677113275,0.83033284,38096.0,38095.0,0.002]
[1646677113476,0.71722284,38096.0,38095.0,0.002]
[1646677114075,0.71722284,38096.0,38095.0,0.23395846]
[1646677114076,0.453995,38096.0,38095.0,0.23395846]
[1646677114276,0.405695,38102.0,38095.0,0.28395846]
[1646677114480,0.75067002,38107.0,38098.0,0.06564113]
[1646677114675,0.405695,38107.0,38098.0,0.13128213]
[1646677114925,0.58673722,38107.0,38098.0,0.13128213]
[1646677115124,0.58673722,38107.0,38098.0,0.11564113]
[1646677115322,0.58673722,38107.0,38101.0,0.00012414]
[1646677115721,0.58973722,38107.0,38101.0,0.00012414]
[1646677116124,0.065645,38106.0,38101.0,0.00012414]
[1646677116325,0.065645,38106.0,38095.0,0.23588054]
[1646677116326,1.55087002,38105.0,38095.0,0.00392208]
[1646677116524,1.55087002,38105.0,38102.0,0.00012414]
[1646677116525,0.8002,38103.0,38102.0,0.00012414]
[1646677116724,1.71228002,38103.0,38102.0,0.00012414]
[1646677116923,1.7842279,38103.0,38102.0,0.00012414]
[1646677117127,1.8498849,38103.0,38102.0,0.00012414]
[1646677117323,2.12569959,38103.0,38095.0,0.00392208]
[1646677117523,0.97642,38101.0,38095.0,0.00392208]
[1646677117725,0.97642,38101.0,38094.0,0.002]
[1646677117726,0.8002,38095.0,38094.0,0.002]
[1646677118023,1.07530786,38095.0,38094.0,0.002]
[1646677118223,1.17530786,38095.0,38094.0,0.002]
[1646677118673,1.97550786,38095.0,38094.0,0.002]
[1646677120475,1.17530786,38095.0,38094.0,0.002]
[1646677120677,0.81722284,38095.0,38094.0,0.002]
[1646677120881,0.26322784,38095.0,38094.0,0.002]
[1646677121278,0.26322784,38098.0,38096.0,0.065645]
[1646677121477,0.2640708,38106.0,38097.0,0.018182]
[1646677121779,0.2640708,38106.0,38102.0,0.2345225]
[1646677121979,0.2640708,38106.0,38099.0,0.19600936]
[1646677121980,0.02823967,38101.0,38099.0,0.37222936]
[1646677122182,0.00084296,38106.0,38101.0,0.02622]
[1646677122183,2.96e-06,38106.0,38101.0,0.02622]
[1646677122420,2.96e-06,38106.0,38104.0,0.018161]
[1646677122620,2.96e-06,38106.0,38104.0,0.091831]
[1646677122821,2.96e-06,38106.0,38105.0,0.018159]
[1646677123222,2.96e-06,38106.0,38104.0,0.091831]
[1646677123420,2.96e-06,38106.0,38105.0,0.018158]
[1646677124724,0.35808502,38120.0,38105.0,0.018158]
[1646677124921,0.01311,38120.0,38109.0,0.065615]
[1646677125120,0.215617,38121.0,38112.0,0.19728156]
[1646677125321,0.0010333,38126.0,38114.0,0.02622]
[1646677125524,0.0010333,38126.0,38117.0,0.02622]
[1646677125720,0.0010333,38126.0,38119.0,0.02622]
[1646677125920,0.036,38135.0,38120.0,0.018119]
[1646677126176,0.00016709,38126.0,38121.0,0.02622]
[1646677126376,0.00016709,38126.0,38125.0,0.02622]
[1646677126676,0.00016709,38126.0,38124.0,0.18595695]
[1646677126677,0.00016709,38126.0,38124.0,0.25154395]
[1646677127379,0.36931131,38135.0,38123.0,0.131173]
[1646677127380,0.1501671,38127.0,38123.0,0.131173]
[1646677127577,0.405695,38126.0,38115.0,1.5165]
[1646677127777,0.34131146,38126.0,38119.0,0.002]
[1646677128175,0.0001671,38127.0,38119.0,0.002]
[1646677128375,0.21256801,38128.0,38119.0,0.002]
[1646677128577,0.00016709,38126.0,38119.0,0.002]
[1646677128974,0.00016709,38126.0,38118.0,0.26606267]
[1646677129476,0.00016709,38126.0,38120.0,0.065601]
[1646677129676,0.21256801,38128.0,38120.0,0.065601]
[1646677129923,0.405695,38123.0,38115.0,0.7258]
[1646677130123,0.405695,38123.0,38122.0,0.00154723]
[1646677130322,0.555695,38123.0,38122.0,0.00154723]
[1646677130518,1.355895,38123.0,38122.0,0.00154723]
[1646677130718,0.555695,38123.0,38122.0,0.00154723]
[1646677130920,0.5390585,38123.0,38122.0,0.00154723]
[1646677131121,0.6703015,38123.0,38122.0,0.00154723]
[1646677131720,0.6733015,38123.0,38122.0,0.00154723]
[1646677132121,1.0130758,38123.0,38122.0,0.00154723]
[1646677133021,0.6965215,38123.0,38122.0,0.00154723]
[1646677133221,1.0494058,38123.0,38122.0,0.00154723]
[1646677133422,1.5098315,38123.0,38122.0,0.00154723]
[1646677133662,1.5128315,38123.0,38122.0,0.00154723]
[1646677133866,1.8526058,38123.0,38122.0,0.00154723]
[1646677134263,2.0009058,38123.0,38122.0,0.00154723]
[1646677134468,0.20067261,38114.0,38110.0,0.05]
[1646677134666,0.405695,38113.0,38110.0,0.05]
[1646677134866,0.603995,38113.0,38102.0,1.46751936]
[1646677135071,0.603995,38113.0,38102.0,0.764]
[1646677135072,0.1788592,38106.0,38102.0,0.764]
[1646677135271,0.405698,38105.0,38100.0,0.00012496]
[1646677135665,0.004,38106.0,38099.0,0.2647366]
[1646677135867,0.004,38106.0,38100.0,0.0919679]
[1646677136064,0.004,38106.0,38100.0,0.0657479]
[1646677136465,0.004,38106.0,38100.0,0.19699377]
[1646677136666,0.405698,38105.0,38100.0,0.19699377]
[1646677136867,0.21997636,38106.0,38099.0,0.2385166]
[1646677136868,0.21597636,38106.0,38099.0,0.3697626]
[1646677137067,0.405698,38105.0,38100.0,0.00012496]
[1646677137519,0.405698,38110.0,38100.0,0.00012496]
[1646677137921,0.1,38120.0,38100.0,0.00012496]
[1646677137922,0.1,38118.0,38103.0,0.065628]
[1646677138120,0.1,38118.0,38104.0,0.3397743]
[1646677138419,0.19174039,38114.0,38113.0,0.28421639]
[1646677138618,0.04930185,38126.0,38113.0,0.28421639]
[1646677138820,0.04930185,38126.0,38119.0,0.21803166]
[1646677138821,0.01311,38125.0,38119.0,0.21803166]
[1646677139018,0.01311,38125.0,38120.0,0.065606]
[1646677139218,0.01311,38125.0,38120.0,0.4053803]
[1646677139420,1.9628974,38129.0,38120.0,0.4053803]
[1646677139421,0.01311,38128.0,38120.0,0.065606]
[1646677139621,0.00020044,38126.0,38121.0,0.23451855]
[1646677139818,0.00020044,38126.0,38121.0,0.13119361]
[1646677140221,0.00020044,38126.0,38121.0,0.31238461]
[1646677140423,0.00020044,38126.0,38105.0,0.654815]
[1646677140424,0.405712,38125.0,38105.0,0.654815]
[1646677140719,0.405712,38123.0,38109.0,0.8293]
[1646677140919,0.405712,38121.0,38114.0,0.06561643]
[1646677141167,0.16849135,38117.0,38114.0,0.06561643]
[1646677141370,0.16849135,38117.0,38108.0,0.7713]
[1646677141371,0.74536234,38116.0,38108.0,0.7713]
[1646677141570,0.113934,38115.0,38108.0,0.7713]
[1646677141767,0.405712,38114.0,38108.0,0.7713]
[1646677141967,0.454012,38114.0,38108.0,0.7713]
[1646677142568,0.454012,38114.0,38108.0,0.8213]
[1646677143674,0.454012,38114.0,38108.0,0.7713]
[1646677143675,0.19491316,38111.0,38108.0,0.7713]
[1646677143871,0.471353,38110.0,38108.0,0.7713]
[1646677144070,0.471353,38110.0,38102.0,0.00434986]
[1646677144469,0.405712,38110.0,38102.0,0.00434986]
[1646677144669,0.405712,38110.0,38100.0,0.13126288]
[1646677144927,0.15,38105.0,38099.0,0.05]
[1646677145123,0.15,38105.0,38097.0,0.7593]
[1646677145124,0.454012,38104.0,38097.0,0.7593]
[1646677145326,0.448072,38104.0,38102.0,0.0999]
[1646677145522,0.25,38103.0,38102.0,0.0999]
[1646677145722,1.84386234,38103.0,38102.0,0.0757089]
[1646677146324,1.89386234,38103.0,38102.0,0.0757089]
[1646677146623,0.405718,38102.0,38100.0,0.00013857]
[1646677146822,0.0483,38101.0,38100.0,0.00013857]
[1646677147023,0.454018,38101.0,38100.0,0.00013857]
[1646677147724,0.608018,38101.0,38094.0,0.06764958]
[1646677147926,0.608018,38101.0,38099.0,0.00013858]
[1646677147927,0.673671,38101.0,38099.0,0.00013858]
[1646677148523,0.523671,38101.0,38099.0,0.00013858]
[1646677148770,0.523671,38101.0,38096.0,0.34564582]
[1646677148771,0.0523,38101.0,38096.0,0.34564582]
[1646677148971,0.0483,38101.0,38099.0,0.22539054]
[1646677149171,0.0483,38111.0,38100.0,0.405718]
[1646677149371,0.0483,38111.0,38101.0,0.33819764]
[1646677149672,0.405718,38109.0,38104.0,0.21475505]
[1646677151383,0.01311,38114.0,38105.0,0.74391564]
[1646677151573,1.2461,38116.0,38107.0,0.13125452]
[1646677151574,0.01311,38115.0,38107.0,0.13125452]
[1646677151774,0.4459,38116.0,38105.0,0.60069137]
[1646677151775,0.4459,38116.0,38108.0,0.33819764]
[1646677151976,0.4459,38116.0,38107.0,0.05]
[1646677152179,0.4459,38116.0,38105.0,0.131243]
[1646677152180,0.21489633,38111.0,38105.0,0.131243]
[1646677152419,0.21489633,38111.0,38104.0,0.26475505]
[1646677152619,0.405718,38110.0,38107.0,0.02559161]
[1646677153020,0.21489633,38111.0,38104.0,0.26475505]
[1646677153619,0.21489633,38111.0,38106.0,0.06562555]
[1646677153819,0.405718,38110.0,38106.0,0.06562555]
[1646677154021,0.555718,38110.0,38104.0,0.05]
[1646677154220,0.405718,38110.0,38102.0,0.29765898]
[1646677154621,0.001,38111.0,38106.0,0.00182834]
[1646677154820,0.001,38111.0,38106.0,0.00162574]
[1646677155020,0.4459,38116.0,38106.0,0.1328605]
[1646677155219,0.60761078,38115.0,38107.0,0.05]
[1646677155420,0.944521,38115.0,38107.0,0.05]
[1646677155621,0.405718,38111.0,38107.0,0.05]
[1646677155835,0.20279279,38113.0,38106.0,0.00162574]
[1646677155836,0.47603479,38108.0,38106.0,0.00162574]
[1646677156168,0.74262822,38107.0,38106.0,0.00162574]
[1646677156370,0.89262822,38107.0,38106.0,0.00162574]
[1646677156567,0.555718,38107.0,38106.0,0.00162574]
[1646677156769,0.77566789,38107.0,38106.0,0.00162574]
[1646677157172,0.405718,38107.0,38106.0,0.00162574]
[1646677157773,0.409718,38107.0,38106.0,0.00162574]
[1646677158380,0.004,38107.0,38106.0,0.00162574]
[1646677158975,0.33691022,38114.0,38106.0,0.00162574]
[1646677159173,0.59475532,38113.0,38107.0,0.20364967]
[1646677159576,0.59475532,38113.0,38107.0,0.3192723]
[1646677159941,0.59475532,38113.0,38107.0,0.06712778]
[1646677160235,0.59475532,38113.0,38107.0,0.00150515]
[1646677160735,0.59475532,38113.0,38108.0,0.21049328]
[1646677160941,0.45901,38116.0,38108.0,0.21049328]
[1646677161235,0.405718,38115.0,38108.0,0.26049328]
[1646677162236,0.74262822,38115.0,38107.0,0.00150515]
[1646677162444,0.15,38108.0,38107.0,0.00150515]
[1646677162637,0.94092822,38108.0,38107.0,0.00150515]
[1646677162939,1.84112822,38108.0,38107.0,0.00150515]
[1646677163137,1.56500306,38108.0,38107.0,0.00150515]
[1646677163337,2.03062668,38108.0,38107.0,0.00150515]
[1646677163684,2.03362668,38108.0,38107.0,0.00150515]
[1646677164382,0.17830839,38100.0,38095.0,0.22471567]
[1646677164585,0.405718,38099.0,38095.0,0.22471567]
[1646677164783,0.0483,38102.0,38095.0,0.22471567]
[1646677165583,0.0001,38102.0,38095.0,0.22471567]
[1646677165788,0.0001,38102.0,38097.0,0.00014139]
[1646677165985,0.15,38103.0,38097.0,0.00014139]
[1646677166191,0.15,38103.0,38098.0,0.45]
[1646677166391,0.38,38105.0,38098.0,0.5]
[1646677166985,0.38,38105.0,38104.0,0.27800337]
[1646677167436,0.38,38105.0,38104.0,0.91084082]
[1646677168233,0.38,38105.0,38104.0,1.11164458]
[1646677168532,0.34882068,38119.0,38115.0,0.21479878]
[1646677168735,0.34882068,38119.0,38108.0,0.06561548]
[1646677168736,0.14680332,38114.0,38108.0,0.06561548]
[1646677169333,0.14680332,38114.0,38109.0,0.405718]
[1646677169535,0.14680332,38114.0,38108.0,0.13123148]
[1646677169736,0.14680332,38114.0,38112.0,0.25261023]
[1646677169936,0.14680332,38114.0,38112.0,0.18699787]
[1646677170136,0.405718,38113.0,38107.0,0.13123095]
[1646677170336,0.405718,38113.0,38107.0,0.05]
[1646677170736,0.405718,38113.0,38106.0,0.8198]
[1646677171182,0.16833004,38111.0,38106.0,1.01007486]
[1646677171771,0.17033004,38111.0,38106.0,1.01007486]
[1646677172975,0.16833004,38111.0,38106.0,1.01007486]
[1646677173374,0.29680332,38114.0,38106.0,1.01007486]
[1646677173575,0.29680332,38114.0,38110.0,0.2743019]
[1646677173775,0.14680332,38114.0,38110.0,0.2743019]
[1646677173982,0.14680332,38114.0,38110.0,0.3243019]
[1646677174174,0.14680332,38114.0,38112.0,0.20400337]
[1646677174578,0.14680332,38114.0,38110.0,0.05]
[1646677174918,0.405718,38113.0,38110.0,0.05]
[1646677175122,0.15,38112.0,38108.0,0.00150357]
[1646677175320,0.405718,38111.0,38108.0,0.00150357]
[1646677175719,0.59473027,38111.0,38108.0,0.00150357]
[1646677176125,0.065636,38110.0,38108.0,0.00150357]
[1646677176323,0.405718,38109.0,38108.0,0.00150357]
[1646677177129,0.555718,38109.0,38108.0,0.00150357]
[1646677177324,0.655718,38109.0,38108.0,0.00150357]
[1646677177525,0.681938,38109.0,38108.0,0.00150357]
[1646677177724,0.839306,38109.0,38108.0,0.00150357]
[1646677177924,1.73870448,38109.0,38108.0,0.00150357]
[1646677179076,1.73470448,38109.0,38108.0,0.00150357]
[1646677179867,1.73870448,38109.0,38108.0,0.00150357]
[1646677180071,0.17365777,38102.0,38100.0,0.00150198]
[1646677180270,0.17365777,38102.0,38100.0,0.00164308]
[1646677180271,0.405718,38101.0,38100.0,0.00164308]
[1646677180672,0.004,38109.0,38100.0,0.00153681]
[1646677180872,0.405718,38108.0,38100.0,0.00153681]
[1646677181171,0.15,38110.0,38100.0,0.00139571]
[1646677181371,0.15,38110.0,38105.0,0.2221276]
[1646677181372,0.405718,38109.0,38105.0,0.2221276]
[1646677181970,0.15,38108.0,38101.0,0.33782682]
[1646677182172,0.15,38108.0,38100.0,0.00152799]
[1646677182173,0.405718,38107.0,38100.0,0.00152799]
[1646677182422,0.405718,38107.0,38100.0,0.00139571]
[1646677182624,0.065637,38109.0,38108.0,0.01570528]
[1646677182923,0.47136,38109.0,38108.0,0.01570528]
[1646677183324,1.29778,38109.0,38108.0,0.01570528]
[1646677183523,1.49768,38109.0,38108.0,0.01570528]
[1646677183728,1.54998,38109.0,38108.0,0.01570528]
[1646677183923,1.56309,38109.0,38108.0,5.28e-06]
[1646677184229,1.61309,38109.0,38108.0,5.28e-06]
[1646677185125,1.63490469,38109.0,38108.0,5.28e-06]
[1646677185525,0.78470469,38109.0,38108.0,5.28e-06]
[1646677185725,0.59294769,38109.0,38108.0,5.28e-06]
[1646677185926,0.418833,38109.0,38108.0,5.28e-06]
[1646677186171,0.405723,38109.0,38108.0,0.17554496]
[1646677186374,0.14680332,38114.0,38108.0,0.17554496]
[1646677186571,0.405723,38113.0,38108.0,0.17554496]
[1646677187173,0.14680332,38114.0,38108.0,0.17554496]
[1646677187174,0.405723,38112.0,38108.0,0.17554496]
[1646677187371,0.14680332,38114.0,38108.0,0.17554496]
[1646677187572,0.405723,38113.0,38108.0,0.17554496]
[1646677187978,0.14680332,38114.0,38108.0,0.35760669]
[1646677188274,0.405723,38113.0,38108.0,0.35760669]
[1646677188474,0.405723,38113.0,38108.0,0.17542359]
[1646677188973,0.405723,38113.0,38108.0,0.17721724]
[1646677189573,0.14680332,38114.0,38108.0,0.17721724]
[1646677189775,0.405723,38113.0,38108.0,0.17721724]
[1646677190217,0.14680332,38114.0,38108.0,0.17721724]
[1646677191017,0.14680332,38114.0,38110.0,0.20225923]
[1646677191224,0.14680332,38114.0,38111.0,0.74417242]
[1646677191428,0.0999,38120.0,38111.0,0.74417242]
[1646677191429,0.0999,38120.0,38112.0,1.55]
[1646677191624,0.0999,38120.0,38113.0,0.33844942]
[1646677191625,0.08992926,38120.0,38113.0,0.33844942]
[1646677191821,0.08992926,38120.0,38119.0,0.06358892]
[1646677192024,0.08992926,38120.0,38117.0,0.4174232]
[1646677192219,0.08992926,38120.0,38115.0,0.20310549]
[1646677192419,0.08992926,38120.0,38117.0,0.05]
[1646677192621,0.08992926,38120.0,38118.0,0.33844942]
[1646677192820,0.08992926,38120.0,38118.0,0.05]
[1646677193018,0.08992926,38120.0,38115.0,0.25310549]
[1646677193221,0.08992926,38120.0,38116.0,0.065603]
[1646677193422,0.08992926,38120.0,38115.0,0.49811783]
[1646677193876,0.09192926,38120.0,38115.0,0.49811783]
[1646677194272,0.09192926,38120.0,38117.0,0.19409825]
[1646677194776,0.09192926,38120.0,38117.0,0.24409825]
[1646677194972,0.09192926,38120.0,38117.0,0.05]